Cogmind - Beta 9.6 @@@ ROGUE MODE // 2020.05.18 @ 20:24:19 Player: Vectis Result: Destroyed by G-47 Trooper with Particle Gun Performance ------------- Evolutions (2) 1000 Regions Visited (3) 600 Robots Destroyed (53) 265 Value Destroyed (1276) 1276 Prototype IDs (1) 20 Alien Tech Used (0) 0 Bonus (-30) -30 TOTAL SCORE: 3131 Bonus ------- Friendly Fire -30 Cogmind --------- Core Integrity 0/550 Matter 300/300 Energy 100/100 System Corruption 9% Temperature Cool (9) Movement Core (50) Location -8/Materials Parts ------- > --- POWER (1) -------- (None) > --- PROPULSION (2) --- (None) > --- UTILITY (6) ------ (None) > --- WEAPON (2) ------- Scythe > --- INVENTORY (4) ---- Ion Engine Grenade Launcher Scythe Scythe Peak State ------------ > --- POWER ------------ Light Nuclear Core > --- PROPULSION ------- Armored Wheel Aerolev Unit > --- UTILITY ---------- Improved Heat Sink Medium Storage Unit Improved Targeting Computer Improved Targeting Computer Hardened Medium Armor Plating Hacking Suite > --- WEAPON ----------- Scythe Scythe > --- INVENTORY -------- Ion Engine Aluminum Leg Medium Matter Pod Grenade Launcher Scythe Scythe Scythe Scythe [Rating: 30] Favorites ----------- Power Light Nuclear Core Engine Improved Ion Engine Power Core Light Nuclear Core Propulsion Light Treads Treads Light Treads Leg Aluminum Leg Wheel Armored Wheel Hover Unit Aerolev Unit Utility Improved Targeting Computer Device Heat Sink Storage Medium Storage Unit Processor Improved Targeting Computer Hackware Hacking Suite Protection Hardened Medium Armor Plating Weapon Scythe Energy Gun Small Laser Energy Cannon EM Pulse Cannon Ballistic Gun Light Assault Rifle Launcher Grenade Launcher Slashing Weapon Scythe Build | -11 -10 -9 -8 ------- Run | Scr Mat Mat Mat Slots Evolved 4 | . . 2 2 Power . | . . . . Propulsion . | . . . . Utility 4 | . . 2 2 Weapon . | . . . . Parts Attached 59 | 6 9 20 24 Power 5 | 1 1 1 2 Engine 2 | 1 . 1 . Core 3 | . 1 . 2 Reactor . | . . . . Propulsion 15 | 2 1 5 7 Treads 8 | 2 1 3 2 Leg 2 | . . 2 . Wheel 4 | . . . 4 Hover 1 | . . . 1 Flight . | . . . . Utility 18 | 1 2 8 7 Device 6 | . . 4 2 Storage 4 | 1 1 . 2 Processor 3 | . 1 2 . Hackware 1 | . . . 1 Protection 4 | . . 2 2 Artifact . | . . . . Weapon 21 | 2 5 6 8 Energy Gun 9 | 2 1 6 . Energy Cannon 2 | . . . 2 Ballistic Gun 3 | . 3 . . Ballistic Cannon . | . . . . Launcher 1 | . 1 . . Special Weapon . | . . . . Impact Weapon . | . . . . Slashing Weapon 6 | . . . 6 Piercing Weapon . | . . . . Special Melee Weapon . | . . . . Unidentified Prototypes 1 | . . . 1 Parts Lost 18 | . 2 7 9 Power 2 | . . 1 1 Propulsion 4 | . . 1 3 Utility 5 | . . 1 4 Weapon 7 | . 2 4 1 Highest Loss Streak 9 | . 1 5 9 Average Slot Usage (%) 93 | . 92 94 92 Engine 4 | . 3 9 . Core 5 | . 10 1 6 Treads 17 | . 28 21 6 Leg 1 | . . . 3 Wheel 1 | . . . 3 Hover 1 | . . . 3 Device 5 | . . 9 6 Storage 11 | . 14 11 11 Processor 13 | . 7 18 14 Hackware 3 | . . . 8 Protection 4 | . . . 10 Energy Gun 10 | . 14 17 . Ballistic Gun 4 | . 13 3 . Slashing Weapon 6 | . . . 16 Naked Turns . | . . . . Heaviest Build 52 | 12 15 24 52 Greatest Support 40 | 40 40 40 40 Greatest Overweight (x) 3 | . . . 3 Average Overweight (x) . | . . . . Largest Inventory Capacity 16 | 6 8 8 16 Average Capacity 8 | 5 6 8 9 Most Carried 9 | 6 8 8 9 Average Carried 7 | 4 5 7 7 Final Capacity 8 | 6 8 8 4 Final Carried 8 | 6 8 5 4 Class Distribution -------------------- 53% | Mutant 46% | Scavenger-Mutant Dominant Class ---------------- Mutant | -10/Materials Scavenger-Mutant | -9/Materials Mutant | -8/Materials Resources | -11 -10 -9 -8 ----------- Run | Scr Mat Mat Mat Matter Collected 945 | 255 175 275 240 Remotely . | . . . . Salvage Created 2341 | 56 460 774 1051 Parts 127 | 5 36 43 43 Haulers Intercepted 7 | . 1 3 3 Recyclers Shooed 2 | . 1 1 . Parts Field Recycled . | . . . . Retrieved Matter . | . . . . Parts Self-Destructed . | . . . . Prevented . | . . . . Kills | -11 -10 -9 -8 ------- Run | Scr Mat Mat Mat Combat Hostiles Destroyed 31 | . 9 11 11 Melee 10 | . . . 10 Guns 16 | . 5 11 . Cannons 1 | . . . 1 AOE 4 | . 4 . . Classes Destroyed 12 | 1 6 2 3 Worker 2 | . . . 2 Tunneler 3 | 2 . 1 . Hauler 7 | . 1 3 3 Recycler 5 | . 1 1 3 Operator 2 | . 2 . . Watcher 3 | . 1 2 . Swarmer 5 | . 3 2 . Grunt 14 | . 6 5 3 Brawler 2 | . . . 2 Duelist 1 | . . 1 . Sentry 8 | . . 3 5 Hunter 1 | . . . 1 Best Kill Streak 5 | 2 4 5 5 Combat Bots Only 3 | . 3 2 2 Max Kills in Single Turn 2 | 1 2 2 1 Gunslinging . | . . . . Exploded 2 | . 2 . . Melee 1 | . . . 1 Uniques/NPCs Destroyed . | . . . . Combat | -11 -10 -9 -8 -------- Run | Scr Mat Mat Mat Damage Taken 3228 | 15 496 904 1813 Core 792 | 15 107 118 552 Absorbed by Shields 122 | . . 25 97 Core Remaining (%) 71 | 94 51 70 . Volleys Fired 122 | 4 60 52 6 Largest 2 | 2 2 2 2 Hottest 126 | 80 80 101 126 Shots Fired 230 | 8 113 99 10 Gun 218 | 8 111 99 . Cannon 10 | . . . 10 Launcher 2 | . 2 . . Special . | . . . . Kinetic 85 | . 65 20 . Thermal 70 | 4 33 33 . Explosive 2 | . 2 . . Electromagnetic 73 | 4 13 46 10 Robot Hit Streak 24 | 4 10 24 6 Robot Miss Streak 5 | 2 5 3 1 Penetration Max . | . . . . Secondary Targets . | . . . . Shots Hit Robots 223 | 6 76 84 57 Core Hits 94 | 2 27 42 23 Critical Hits 7 | . 1 1 5 Critical Kills 4 | . . 1 3 Critical Parts Destroyed 3 | . 1 . 2 Melee Attacks 72 | . . . 72 Impact . | . . . . Slashing 72 | . . . 72 Piercing . | . . . . Sneak Attacks 9 | . . . 9 Combat Hostiles 1 | . . . 1 Follow-up Attacks 9 | . . . 9 Damage Inflicted 4469 | 83 864 1234 2288 Guns 1841 | 59 635 1147 . Cannons 216 | . . . 216 Explosions 370 | 24 229 83 34 Melee 2026 | . . . 2026 Ramming 16 | . . 4 12 Kinetic 432 | . 313 119 . Thermal 768 | 46 289 399 34 Explosive 126 | . 126 . . Electromagnetic 1101 | 37 136 712 216 Impact . | . . . . Slashing 2026 | . . . 2026 Piercing . | . . . . Highest Corruption 9 | . . . 9 Average Corruption 8 | . . . 8 Corruption Purged . | . . . . Effects 1 | . . . 1 Matter Fused 1 | . . . 1 Overload Shots . | . . . . Overflow Damage 92 | . . . 92 Projectiles . | . . . . Explosions . | . . . . Melee 92 | . . . 92 Knockbacks . | . . . . Impact . | . . . . Kinetic . | . . . . Secondary . | . . . . Self-Inflicted Damage 78 | 15 8 52 3 Shots 4 | 1 1 2 . Rammed 3 | . . 1 2 Targets Rammed 5 | . . 3 2 Kicked 2 | . . 2 . Crushed . | . . . . Highest Temperature 235 | 66 235 163 81 Average Temperature 44 | 31 49 38 32 Received Heat Transfer 816 | . 234 225 357 Siege Activations . | . . . . Robots Corrupted . | . . . . Combat Hostiles . | . . . . Parts Fried 5 | . . 3 2 Impact Corruptions . | . . . . Robots Melted . | . . . . Combat Hostiles . | . . . . Parts Melted . | . . . . Heat Transferred 1422 | 50 525 847 . Parts Sabotaged . | . . . . Parts Stolen . | . . . . Parts Stripped . | . . . . Power Chain Reactions 5 | 1 1 2 1 Missiles Intercepted . | . . . . Alert | -11 -10 -9 -8 ------- Run | Scr Mat Mat Mat Peak Influence 263 | 10 263 222 227 Average Influence 103 | 1 118 96 112 Maximum Alert Level 1 | . 1 1 1 Low Security (%) 94 | 100 88 96 94 Level 1 5 | . 11 3 5 Level 2 . | . . . . Level 3 . | . . . . Level 4 . | . . . . Level 5 . | . . . . High Security . | . . . . Max Security . | . . . . Squads Dispatched 4 | . 1 3 . Investigation . | . . . . Extermination . | . . . . Reinforcement 4 | . 1 3 . Assault . | . . . . Garrison . | . . . . Intercept . | . . . . Construction Impeded 1 | . . 1 . Haulers Reinforced . | . . . . Stealth | -11 -10 -9 -8 --------- Run | Scr Mat Mat Mat Distress Signals 5 | . 3 . 2 Communications Jammed . | . . . . Distress Signals . | . . . . Times Spotted 66 | . 17 22 27 Peak Tracking Total 6 | . 4 5 6 Tactical Retreats 5 | . 1 1 3 Traps | -11 -10 -9 -8 ------- Run | Scr Mat Mat Mat Traps Triggered . | . . . . Indirectly . | . . . . Trap Hack Attempts . | . . . . Triggered . | . . . . Disarmed . | . . . . Reprogrammed . | . . . . Reused . | . . . . Traps Extracted . | . . . . Installed . | . . . . Triggered . | . . . . Machines | -11 -10 -9 -8 ---------- Run | Scr Mat Mat Mat Machines Disabled 2 | . 1 1 . Max in Single Turn 1 | . 1 1 . Machines Sabotaged . | . . . . Garrisons Compromised . | . . . . Overloaded Fab Kills . | . . . . Fab Network Shutdowns . | . . . . Hacking | -11 -10 -9 -8 --------- Run | Scr Mat Mat Mat Machines Accessed 13 | . 7 5 1 Terminals 11 | . 6 4 1 Fabricators . | . . . . Repair Stations 1 | . 1 . . Recycling Units . | . . . . Scanalyzers 1 | . . 1 . Garrison Access . | . . . . Total Hacks 41 | . 25 14 2 Successful 26 | . 19 7 . Failed 15 | . 6 7 2 Catastrophic . | . . . . Database Lockouts . | . . . . Manual 29 | . 17 10 2 Terminals 37 | . 23 12 2 Fabricators . | . . . . Repair Stations 2 | . 2 . . Recycling Units . | . . . . Scanalyzers 2 | . . 2 . Garrison Access . | . . . . Terminal Hacks 8 | . 7 1 . Robot Analysis 1 | . 1 . . Branch Access Points 1 | . . 1 . Hauler Manifests 2 | . 2 . . Registered Components 1 | . 1 . . Zone Layout 3 | . 3 . . Fabricator Hacks . | . . . . Repair Station Hacks 2 | . 2 . . Scan Component 1 | . 1 . . Repair 1 | . 1 . . Recycling Unit Hacks . | . . . . Scanalyzer 2 | . . 2 . Insert Component 1 | . . 1 . Analyze 1 | . . 1 . Garrison Access Hacks . | . . . . Unauthorized Hacks 14 | . 10 4 . Terminals 14 | . 10 4 . Track 3 | . 3 . . Assimilate 1 | . 1 . . Botnet 9 | . 5 4 . Operators 1 | . 1 . . Fabricators . | . . . . Repair Stations . | . . . . Recycling Units . | . . . . Scanalyzers . | . . . . Garrison Access . | . . . . Data Cores Recovered . | . . . . Used . | . . . . Hacking Detections 10 | . 5 4 1 Full Trace Events . | . . . . Feedback Events . | . . . . Feedback Blocked . | . . . . Robot Schematics Acquired . | . . . . Robots Built . | . . . . Matter . | . . . . Time . | . . . . Total Robot Build Rating . | . . . . Part Schematics Acquired 1 | . . 1 . Parts Built . | . . . . Matter . | . . . . Time . | . . . . Total Part Build Rating . | . . . . Parts Repaired 1 | . 1 . . Time 26 | . 26 . . Parts Recycled . | . . . . Recycled Matter . | . . . . Retrieved Matter . | . . . . Retrieved Components . | . . . . Parts Scanalyzed 1 | . . 1 . Part Schematics Acquired 1 | . . 1 . Parts Damaged . | . . . . Bothacking | -11 -10 -9 -8 ------------ Run | Scr Mat Mat Mat Used RIF Installer . | . . . . Robots Hacked . | . . . . Non-combat . | . . . . Combat . | . . . . Robot Hacks Applied . | . . . . Relay Couplers Released . | . . . . Robots Rewired . | . . . . Allies Hacked . | . . . . Hacks Repelled . | . . . . Allies | -11 -10 -9 -8 -------- Run | Scr Mat Mat Mat Total Allies 1 | . 1 . . Largest Group 1 | . 1 . . Highest-Rated Group 10 | . 10 . . Highest-Rated Ally 10 | . 10 . . Total Orders . | . . . . Ally Attacks . | . . . . Total Damage . | . . . . Kills . | . . . . Allies Corrupted . | . . . . Allies Melted . | . . . . Intel | -11 -10 -9 -8 ------- Run | Scr Mat Mat Mat Robot Analysis Total 1 | . 1 . . Derelict Logs Recovered . | . . . . Drone Launches . | . . . . Drone Recoveries . | . . . . Exploration | -11 -10 -9 -8 ------------- Run | Scr Mat Mat Mat Turns Passed 2791 | 146 729 912 1004 Spaces Moved 1300 | 87 313 415 485 Core 20 | 17 . . 3 Treads 972 | 70 313 401 188 Legs 63 | . . 14 49 Wheels 132 | . . . 132 Hover 113 | . . . 113 Flight . | . . . . Fastest Speed 50 | 50 160 120 50 Average Speed 150 | 138 160 158 139 Slowest Speed 180 | 160 160 160 180 Overloaded Moves . | . . . . Propulsion Burnouts . | . . . . Robots Hopped . | . . . . Cave-ins Triggered . | . . . . Exploration Rate (%) 34 | 5 65 35 31 Regions Visited 3 Branch Regions . Pre-discovered Areas . | . . . . Known Exits Taken 1 | . 1 . . Unknown Exits Taken 2 | 1 . 1 . Scrap Searched . | . . . . Spaces Dug 4 | . . . 4 Terrain Destroyed 30 | 4 15 5 6 Melee 4 | . . . 4 Projectile . | . . . . AOE 26 | 4 15 5 2 Actions | -11 -10 -9 -8 --------- Run | Scr Mat Mat Mat Total 1830 | 102 441 576 711 Wait 210 | . 52 64 94 Move 1297 | 86 312 414 485 Hop . | . . . . Pick Up 29 | 6 4 6 13 Fast Attach 34 | 6 2 11 15 Attach 12 | . 2 5 5 Detach 1 | . 1 . . Swap 13 | . 5 4 4 Drop 46 | . 3 17 26 Fire 122 | 4 60 52 6 Melee 61 | . . . 61 Ram 1 | . . . 1 Kick 3 | . . 3 . Crush 1 | . . . 1 Escape Stasis . | . . . . Rewire . | . . . . Trap . | . . . . Miscellaneous . | . . . . Route ------- -11/Scrapyard -10/Materials -9/Materials (discovered 2 exits: *Mat / *Min) -8/Materials (discovered 1 exit: [*Fac]) History --------- Turn | Location | Event 5 | -11/Scrapyard | Discovered new exit (range 16) 147 | -11/Scrapyard | Entered Materials 304 | -10/Materials | Build established: Mutant 564 | -10/Materials | Repaired Ion Engine 827 | -10/Materials | Discovered new exit (range 9) 875 | -10/Materials | Identified exit to Materials 876 | -10/Materials | Entered another Materials area 876 | -9/Materials | Evolved 2 slots: Utility x2 1086 | -9/Materials | Build established: Scavenger-Mutant 1341 | -9/Materials | Discovered new exit (range 9) 1436 | -9/Materials | Identified exit to Mines 1784 | -9/Materials | Discovered new exit (range 3) 1788 | -9/Materials | Entered another Materials area 1788 | -8/Materials | Evolved 2 slots: Utility x2 1799 | -8/Materials | Lost 5 parts (1p1n1u2w) 2584 | -8/Materials | Discovered new exit (range 3) 2767 | -8/Materials | Core integrity fell below 50% 2783 | -8/Materials | Core integrity fell below 20% 2792 | -8/Materials | Destroyed by G-47 Trooper with Particle Gun Last Messages --------------- 02774_ B-36 Bruiser suffers critical hit. 02774_ B-36 Bruiser destroyed. 02775_ Penetrated by Slug. 02777_ Dropped Lrg. Storage Unit. 02777_ Penetrated by Slug. 02777_ Dropped Lrg. Storage Unit. 02778_ Dropped Scythe. 02778_ K-01 Serf collects debris. 02778_ Acquired 15 matter. 02779_ Penetrated by Slug. 02779_ Atomic Centrifuge disabled. 02782_ K-01 Serf collects debris. 02782_ Penetrated by Slug. 02785_ K-01 Serf collects debris. 02786_ Penetrated by Slug. 02788_ K-01 Serf collects debris. 02788_ Penetrated by Slug. 02790_ Carbon-fiber Leg severed. 02790_ Penetrated by Slug. 02792_ K-01 Serf collects debris. Map ----- +----------------------------------------------------+ | ?????????????????????????????????????????????????? | | ?????????????????????????????????????????????????? | | ?????????????????????????????????????????????????? | | ?????????????????????????????????????????????????? | | ?????????????????????????????????????????????????? | | ?????????????????????????????????????????????????? | | ?????????????????????????????????????????????????? | | ?????????????????????????????????????????????????? | | ?????????????????????????????????????????????????? | | ?????????????????????????????????????????????????? | | ?????????????????????????????????????????????????? | | ????###########????????????? ??????????????????? | | ????# #????????????? ??????????????????? | | ##### = = #????????????? ??????????????????? | | %! + !%*== #????????????? ??????????????????? | | ##### ! %*%[ #????????????# #??????#######????? | | #########+################# ####### #????? | | %%%* % ###### | | [%= T | | ###### | | ###########################? ####### #????? | | ???# #???########u#####???### ###????? | | ???# """ """ #???# #?????# #??????? | | ???# """ """ [ ##??# """!""" #?????# #??????? | | ???# """ """ [= #??# """k""" #?????# #??????? | | ???# """ """ ##??# @"" %!" #?????#+######## | | ???# #???# =hg%!![% ####### """ | | ##########+###############/######## # """"" | | ""%% %%!! # """"" | | "%"" %/ + """"" | | % " % # """ | | ##########+###############+######## # | | #??# #???#[ ### ### [ | | #??#[ """ #???# ### #?# = | | #??# """"" #???# """ " " """ + #?####### ## | | #??# """"" #???# """ """ """ ###+####????## # | | #??# """"" #???# """ """ """ # #?????## | | #??# """ ! #???# # #??????## | | #??# #???############### """ #???????? | | #??#######/#####?????????????????# """ #???????? | | #????????# ?????????????????????#= """ #???????? | | ##????????# ?????????????????????# #???????? | | ??????????+ ??????????????????????########???????? | | ??????????##?????????????????????????????????????? | | ?????????????????????????????????????????????????? | | ?????????????????????????????????????????????????? | | ?????????????????????????????????????????????????? | | ?????????????????????????????????????????????????? | | ?????????????????????????????????????????????????? | | ?????????????????????????????????????????????????? | +----------------------------------------------------+ Best States ------------- Heat Dissipation 45 Energy Generation 14 Energy Capacity 265 Matter Stores 300 Matter Capacity 300 Sight Range 16 Robot Scan Range 13 Terrain Scan Density 10 Armor Coverage 375 Evasion (%) 50 Targeting Accuracy 12 Recoil Reduction 2 Offensive Hacking 10 Item Schematics ----------------- Hacking Suite | -9/Materials | Scanalyzed Robot Schematics ------------------ None Fabricated ------------ Nothing Alien Tech Used ----------------- None Achievements -------------- None Challenges ------------ None Game ------ Seed AlertMicroCorpse Manual? 0 Play Time 00:33:36 Cumulative 44.4 hours Start 2020.05.18 @ 19:50:11 End 2020.05.18 @ 20:24:19 Sessions 1 Manual Loads 0 Difficulty Rogue Special Mode None Game No. 24 Rogue 24 Adventurer 0 Explorer 0 Win Type - Total 3 Types 2/0/0/1/0/0/0 Lore% 50 Gallery% 50 Achievement% 45 Wizard Run 0 Options --------- ASCII 1 Keyboard 0 Movement Numpad Keybinds 0 Fullscreen 1 Font 18/SmallcapsGlow Map View 76x50 Tactical HUD 1 Map Filters NONE Filters NONE Steam 1 RUN: fbc96cba-b1ec-47bf-95c7-c594b7bd8d3d